fUST/lending_fUST_20251120
["ID","MTS","AMOUNT","RATE_DAILY","PERIOD"]
[394501440,1763640637061,-371.4,0.00012329,2]
[394501441,1763640637071,-309.5,0.00012329,2]
[394501442,1763640637080,-257.91,0.00012329,2]
[394501443,1763640637090,-214.93,0.00012329,2]
[394501444,1763640637099,-179.11,0.00012329,2]
[394501445,1763640637108,-895.55,0.00012329,2]
[394501446,1763640637118,-1000.0,0.00012478,2]
[394501447,1763640637127,-791.0,0.00012478,2]
[394501448,1763640637136,-290.22420733,0.00012721,2]
[394501449,1763640637145,-1455.44742299,0.00012822,2]
[394501450,1763640637155,-9825.0196976,0.000129,2]
[394501451,1763640637165,-160.0,0.00013285,2]
[394501452,1763640637174,-400.97185895,0.00013297,2]
[394501453,1763640637183,-2151.0,0.00013301,2]
[394501454,1763640637193,-630.0,0.00013301,2]
[394501455,1763640637202,-989.0,0.00013301,2]
[394501456,1763640637211,-9825.01969757,0.00013304,2]
[394501457,1763640637221,-150.0,0.00013441,2]
[394501458,1763640637230,-150.0,0.00013441,2]
[394501459,1763640637239,-150.0,0.00013441,2]
[394501460,1763640637248,-150.0,0.00013441,2]
[394501461,1763640637258,-150.0,0.00013441,2]
[394501462,1763640637266,-554.5428891,0.00013698,2]
[394501463,1763640637276,-500.0,0.00013698,2]
[394501464,1763640637285,-500.0,0.00013698,2]
[394501465,1763640637296,-500.0,0.00013698,2]
[394501466,1763640637305,-643.08856414,0.00013698,2]
[394501467,1763640637315,-500.0,0.00013698,2]
[394501468,1763640637323,-500.0,0.00013698,2]
[394501469,1763640637333,-548.43610505,0.00013698,2]
[394501470,1763640637343,-500.0,0.00013698,2]
[394501471,1763640637352,-566.76527172,0.00013698,2]
[394501472,1763640637362,-514.47525622,0.00013698,2]
[394501473,1763640637371,-1251.58,0.00013698,2]
[394501474,1763640637380,-1251.58,0.00013698,2]
[394501475,1763640637390,-1251.58,0.00013698,2]
[394501476,1763640637399,-1251.58,0.00013698,2]
[394501477,1763640637409,-1251.58,0.00013698,2]
[394501478,1763640637418,-1251.58,0.00013698,2]
[394501479,1763640637427,-1251.58,0.00013698,2]
[394501480,1763640637437,-1251.58,0.00013698,2]
[394501481,1763640637446,-1251.58,0.00013698,2]
[394501482,1763640637455,-1251.58,0.00013698,2]
[394501483,1763640637465,-1251.58,0.00013698,2]
[394501484,1763640637474,-1251.58,0.00013698,2]
[394501485,1763640637484,-1251.58,0.00013698,2]
[394501486,1763640637494,-1251.58,0.00013698,2]
[394501487,1763640637503,-1251.58,0.00013698,2]
[394501488,1763640637513,-1251.58,0.00013698,2]
[394501489,1763640637522,-1251.58,0.00013698,2]
[394501490,1763640637532,-1251.58,0.00013698,2]
[394501491,1763640637542,-1251.58,0.00013698,2]
[394501492,1763640637556,-1251.58,0.00013698,2]
[394501493,1763640637566,-1251.58,0.00013698,2]
[394501494,1763640637575,-1251.58,0.00013698,2]
[394501495,1763640637586,-1251.58,0.00013698,2]
[394501496,1763640637595,-1251.63616265,0.00013698,2]
[394501497,1763640637604,-532.31843607,0.00013698,2]
[394501498,1763640637614,-336.30952653,0.00013698,2]
[394501499,1763640637624,-1406.08,0.00013698,2]
[394501500,1763640637635,-1406.08,0.00013698,2]
[394501501,1763640637645,-1406.08,0.00013698,2]
[394501502,1763640637655,-1406.08,0.00013698,2]
[394501503,1763640637664,-1406.08,0.00013698,2]
[394501504,1763640637673,-1406.08,0.00013698,2]
[394501505,1763640637683,-1406.08,0.00013698,2]
[394501506,1763640637692,-1406.08,0.00013698,2]
[394501507,1763640637702,-1406.08,0.00013698,2]
[394501508,1763640637711,-1406.08,0.00013698,2]
[394501509,1763640637720,-1406.08,0.00013698,2]
[394501510,1763640637729,-1406.08,0.00013698,2]
[394501511,1763640637738,-1406.08,0.00013698,2]
[394501512,1763640637747,-1406.08,0.00013698,2]
[394501513,1763640637756,-1406.08,0.00013698,2]
[394501514,1763640637765,-1406.08,0.00013698,2]
[394501515,1763640637774,-1406.08,0.00013698,2]
[394501516,1763640637784,-1406.08,0.00013698,2]
[394501517,1763640637795,-1406.08,0.00013698,2]
[394501518,1763640637804,-1406.08,0.00013698,2]
[394501519,1763640637813,-1406.08,0.00013698,2]
[394501520,1763640637823,-1406.08,0.00013698,2]
[394501521,1763640637832,-1406.08,0.00013698,2]
[394501522,1763640637842,-1406.23115574,0.00013698,2]
[394501523,1763640637852,-500.0,0.00013698,2]
[394501524,1763640637861,-500.0,0.00013698,2]
[394501525,1763640637870,-500.0,0.00013698,2]
[394501526,1763640637879,-500.0,0.00013698,2]
[394501527,1763640637889,-500.0,0.00013698,2]
[394501528,1763640637898,-500.0,0.00013698,2]
[394501529,1763640637907,-500.0,0.00013698,2]
[394501530,1763640637916,-227.30451171,0.00013698,2]
[394501531,1763640637926,-1000.0,0.00013699,2]
[394501532,1763640637935,-2875.937828,0.00013699,2]
[394501533,1763640637944,-1500.0,0.00013699,2]
[394501534,1763640637954,-151.0,0.00013699,2]
[394501535,1763640637963,-151.0,0.00013699,2]
[394501536,1763640637973,-251.093959,0.00013699,2]
[394501537,1763640637982,-15802.2763132,0.00013699,2]
[394501538,1763640637993,-563.08763554,0.00013699,2]
[394501539,1763640638002,-501.44510508,0.00013699,2]
[394501540,1763640638012,-500.61723941,0.00013699,2]
[394501541,1763640638021,-649.04741042,0.00013699,2]
[394501542,1763640638031,-500.0,0.00013699,2]
[394501543,1763640638040,-165.12638732,0.00013699,2]
[394501544,1763640638051,-154.16527222,0.00013699,2]
[394501545,1763640638061,-2000.0,0.00013699,2]
[394501546,1763640638071,-1711.93,0.00013699,2]
[394501547,1763640638080,-160.0,0.00013699,2]
[394501548,1763640638089,-1000.0,0.00013726,2]
[394501549,1763640638099,-1000.0,0.00013726,2]
[394501550,1763640638134,-154.31469197,0.00014,2]
[394501551,1763640638144,-503.34769948,0.00014247,2]
[394501552,1763640638153,-260.0,0.00014247,2]
[394501553,1763640638163,-600.0,0.000144,2]
[394501554,1763640638173,-308.05620932,0.0001452,2]
[394501555,1763640638182,-200.60830373,0.0001452,2]
[394501557,1763640638191,-84384.9005385,0.00014521,2]
[394501558,1763640638200,-600.0,0.0001455,2]
[394501559,1763640638209,-600.0,0.000147,2]
[394501560,1763640638219,-324.14651727,0.00014721,2]
[394501561,1763640638229,-360.0,0.00014795,2]
[394501562,1763640638238,-600.0,0.0001485,2]
[394501563,1763640638247,-500.0,0.00015,2]
[394501564,1763640638256,-945.0,0.00015,2]
[394501565,1763640638266,-1500.0,0.00015,2]
[394501566,1763640638275,-1500.0,0.00015,2]
[394501567,1763640638284,-1592.8,0.00015,2]
[394501568,1763640638294,-600.0,0.00015,2]
[394501569,1763640638304,-215.4985517,0.00015068,2]
[394501570,1763640638313,-801.83591427,0.00015068,2]
[394501571,1763640638322,-1000.0,0.00015099,2]
[394501572,1763640638332,-1000.0,0.00015099,2]
[394501573,1763640638341,-579.0,0.00015099,2]
[394501574,1763640638351,-600.0,0.0001515,2]
[394501576,1763640638361,-151.307509,0.00015268,2]
[394501577,1763640638370,-600.0,0.000153,2]
[394501578,1763640638380,-287.64811763,0.0001532,2]
[394501579,1763640638389,-468.37648448,0.0001532,2]
[394501580,1763640638399,-542.53289609,0.0001532,2]
[394501581,1763640638409,-500.0,0.00015333,2]
[394501583,1763640638418,-500.0,0.00015333,2]
[394501584,1763640638427,-500.0,0.00015333,2]
[394501585,1763640638436,-460.0,0.00015342,2]
[394501586,1763640638445,-501.92820167,0.0001537,2]
[394501587,1763640638455,-500.0,0.00015383,2]
[394501588,1763640638464,-500.0,0.00015383,2]
[394501589,1763640638473,-500.0,0.00015383,2]
[394501590,1763640638482,-500.0,0.00015383,2]
[394501591,1763640638491,-500.0,0.00015383,2]
[394501592,1763640638501,-403.55805416,0.00015383,2]
[394501593,1763640638510,-500.0,0.00015383,2]
[394501594,1763640638519,-501.83030961,0.00015383,2]
[394501595,1763640638529,-500.0,0.00015383,2]
[394501596,1763640638538,-500.0,0.00015383,2]
[394501597,1763640638548,-500.0,0.00015383,2]
[394501598,1763640638561,-500.0,0.00015383,2]
[394501599,1763640638571,-500.0,0.00015383,2]
[394501600,1763640638580,-503.65404546,0.00015383,2]
[394501601,1763640638589,-500.0,0.00015383,2]
[394501602,1763640638599,-500.0,0.00015383,2]
[394501603,1763640638608,-500.0,0.00015383,2]
[394501604,1763640638618,-500.0,0.00015383,2]
[394501605,1763640638628,-500.0,0.00015383,2]
[394501606,1763640638637,-500.0,0.00015383,2]
[394501607,1763640638647,-500.0,0.00015383,2]
[394501608,1763640638656,-500.0,0.00015383,2]
[394501609,1763640638666,-500.0,0.00015383,2]
[394501610,1763640638675,-501.41008471,0.00015383,2]
[394501611,1763640638684,-500.95716107,0.00015383,2]
[394501612,1763640638693,-165.5070323,0.00015383,2]
[394501613,1763640638703,-500.0,0.00015383,2]
[394501614,1763640638712,-500.09594021,0.00015413,2]
[394501615,1763640638721,-600.0,0.0001545,2]
[394501616,1763640638731,-600.0,0.000156,2]
[394501617,1763640638740,-600.0,0.0001575,2]
[394501618,1763640638749,-518.38515968,0.00015881,2]
[394501619,1763640638759,-1000.0,0.00015881,2]
[394501620,1763640638769,-1000.0,0.00015881,2]
[394501621,1763640638778,-560.0,0.0001589,2]
[394501622,1763640638788,-916.0073634,0.000159,2]
[394501623,1763640638797,-100000.0,0.00015904,2]
[394501624,1763640638807,-371.16793339,0.00015931,2]
[394501625,1763640638817,-1000.0,0.00015931,2]
[394501626,1763640638826,-1000.0,0.00015931,2]
[394501627,1763640638835,-1001.41464575,0.00015931,2]
[394501628,1763640638844,-1014.67070428,0.00015931,2]
[394501629,1763640638854,-513.37029291,0.00015931,2]
[394501630,1763640638863,-1000.0,0.00015931,2]
[394501631,1763640638873,-239.27044956,0.00015931,2]
[394501632,1763640638882,-1001.69492723,0.00015931,2]
[394501633,1763640638889,-1074.53776403,0.00015931,2]
[394501634,1763640638896,-536.15360083,0.00015931,2]
[394501635,1763640638907,-1000.0,0.00015931,2]
[394501636,1763640638916,-1000.0,0.00015931,2]
[394501637,1763640638926,-1000.0,0.00015931,2]
[394501638,1763640638936,-1000.0,0.00015931,2]
[394501639,1763640638945,-502.53653892,0.00015931,2]
[394501640,1763640638955,-1000.0,0.00015931,2]
[394501641,1763640638964,-836.67818076,0.00015931,2]
[394501642,1763640638974,-1000.0,0.00015931,2]
[394501643,1763640638983,-1000.0,0.00015931,2]
[394501644,1763640638993,-505.00405877,0.00015931,2]
[394501645,1763640639002,-500.0,0.00015973,2]
[394501646,1763640639012,-501.17864261,0.00015973,2]
[394501647,1763640639022,-500.0,0.00015973,2]
[394501648,1763640639031,-500.0,0.00015973,2]
[394501649,1763640639040,-500.0,0.00015973,2]
[394501650,1763640639051,-504.00085019,0.00015973,2]
[394501651,1763640639061,-500.0,0.00015973,2]
[394501652,1763640639071,-300.89640242,0.00015973,2]
[394501653,1763640639082,-378.06012019,0.00015973,2]
[394501654,1763640639093,-359.07144821,0.00015973,2]
[394501655,1763640639103,-500.0,0.00015973,2]
[394501656,1763640639115,-500.0,0.00015973,2]
[394501657,1763640639127,-500.0,0.00015973,2]
[394501658,1763640639138,-500.57422623,0.00015973,2]
[394501659,1763640639148,-500.0,0.00015973,2]
[394501660,1763640639159,-195.10737229,0.00015973,2]
[394501661,1763640639169,-500.0,0.00015973,2]
[394501662,1763640639179,-500.0,0.00015973,2]
[394501663,1763640639189,-157.42648949,0.00015973,2]
[394501664,1763640639199,-500.0,0.00015973,2]
[394501665,1763640639210,-1000.0,0.00016,2]
[394501666,1763640639220,-2151.0,0.00016301,2]
[394501667,1763640639231,-630.0,0.00016301,2]
[394501668,1763640639241,-989.0,0.00016301,2]
[394501669,1763640639252,-1502.84615579,0.00016429,2]
[394501670,1763640639262,-1500.0,0.00016429,2]
[394501671,1763640639272,-984.21,0.00016438,2]
[394501672,1763640639282,-500.0,0.00016438,2]
[394501673,1763640639292,-500.0,0.00016438,2]
[394501674,1763640639303,-500.0,0.00016438,2]
[394501675,1763640639314,-500.0,0.00016438,2]
[394501676,1763640639324,-500.0,0.00016438,2]
[394501677,1763640639333,-500.0,0.00016438,2]
[394501678,1763640639343,-500.0,0.00016438,2]
[394501679,1763640639352,-500.0,0.00016438,2]
[394501680,1763640639363,-500.0,0.00016438,2]
[394501681,1763640639372,-500.0,0.00016438,2]
[394501682,1763640639382,-500.0,0.00016438,2]
[394501683,1763640639392,-500.0,0.00016438,2]
[394501684,1763640639401,-500.0,0.00016438,2]
[394501685,1763640639410,-526.08203853,0.00016438,2]
[394501686,1763640639420,-500.0,0.00016438,2]
[394501687,1763640639430,-500.0,0.00016438,2]
[394501688,1763640639439,-619.52226976,0.00016438,2]
[394501689,1763640639448,-619.52226976,0.00016438,2]
[394501690,1763640639458,-619.52226976,0.00016438,2]
[394501691,1763640639467,-619.52226976,0.00016438,2]
[394501692,1763640639477,-619.52226976,0.00016438,2]
[394501693,1763640639486,-619.52226976,0.00016438,2]
[394501694,1763640639496,-619.52226976,0.00016438,2]
[394501695,1763640639506,-619.52226976,0.00016438,2]
[394501696,1763640639516,-619.52226976,0.00016438,2]
[394501697,1763640639525,-619.52226976,0.00016438,2]
[394501698,1763640639535,-619.52226976,0.00016438,2]
[394501699,1763640639546,-619.52226976,0.00016438,2]
[394501700,1763640639559,-619.52226976,0.00016438,2]
[394501701,1763640639568,-619.52226976,0.00016438,2]
[394501702,1763640639578,-619.52226976,0.00016438,2]
[394501703,1763640639588,-619.52226976,0.00016438,2]
[394501704,1763640639599,-619.52226976,0.00016438,2]
[394501705,1763640639608,-619.52226976,0.00016438,2]
[394501706,1763640639618,-619.52226976,0.00016438,2]
[394501707,1763640639627,-619.52226976,0.00016438,2]
[394501708,1763640639640,-619.52226976,0.00016438,2]
[394501709,1763640639649,-619.52226976,0.00016438,2]
[394501710,1763640639658,-1939.75411625,0.00016438,2]
[394501711,1763640639668,-1939.75411625,0.00016438,2]
[394501712,1763640639677,-619.52226976,0.00016438,2]
[394501713,1763640639686,-1939.75411625,0.00016438,2]
[394501714,1763640639696,-619.52226976,0.00016438,2]
[394501715,1763640639705,-1939.75411625,0.00016438,2]
[394501716,1763640639716,-619.52226976,0.00016438,2]
[394501717,1763640639725,-1939.75411625,0.00016438,2]
[394501718,1763640639734,-619.52226976,0.00016438,2]
[394501719,1763640639744,-1939.75411625,0.00016438,2]
[394501720,1763640639753,-619.52226976,0.00016438,2]
[394501721,1763640639763,-1939.75411625,0.00016438,2]
[394501722,1763640639772,-1939.75411625,0.00016438,2]
[394501723,1763640639781,-619.52226976,0.00016438,2]
[394501724,1763640639791,-1939.75411625,0.00016438,2]
[394501725,1763640639802,-619.52226976,0.00016438,2]
[394501726,1763640639812,-1939.75411625,0.00016438,2]
[394501727,1763640639822,-619.52226976,0.00016438,2]
[394501728,1763640639832,-1939.75411625,0.00016438,2]
[394501729,1763640639842,-619.52226976,0.00016438,2]
[394501730,1763640639852,-1939.75411625,0.00016438,2]
[394501731,1763640639862,-619.52226976,0.00016438,2]
[394501732,1763640639871,-1939.75411625,0.00016438,2]
[394501733,1763640639881,-619.52226976,0.00016438,2]
[394501734,1763640639890,-1939.75411625,0.00016438,2]
[394501735,1763640639900,-619.52226976,0.00016438,2]
[394501736,1763640639910,-1939.75411625,0.00016438,2]
[394501737,1763640639920,-619.52226976,0.00016438,2]
[394501738,1763640639929,-1939.75411625,0.00016438,2]
[394501739,1763640639939,-619.52226976,0.00016438,2]
[394501740,1763640639949,-619.52226976,0.00016438,2]
[394501741,1763640639959,-1939.75411625,0.00016438,2]
[394501742,1763640639968,-619.52226976,0.00016438,2]
[394501743,1763640639978,-1939.75411625,0.00016438,2]
[394501744,1763640639987,-619.52226976,0.00016438,2]
[394501745,1763640639997,-1939.75411625,0.00016438,2]
[394501746,1763640640007,-619.52226976,0.00016438,2]
[394501747,1763640640016,-1939.75411625,0.00016438,2]
[394501748,1763640640027,-1939.75411625,0.00016438,2]
[394501749,1763640640037,-619.52226976,0.00016438,2]
[394501750,1763640640049,-619.52226976,0.00016438,2]
[394501751,1763640640059,-1939.75411625,0.00016438,2]
[394501752,1763640640068,-619.52226976,0.00016438,2]
[394501753,1763640640078,-619.52226976,0.00016438,2]
[394501754,1763640640088,-1939.75411625,0.00016438,2]
[394501755,1763640640097,-1939.75411625,0.00016438,2]
[394501756,1763640640107,-619.52226976,0.00016438,2]
[394501757,1763640640116,-1939.75411625,0.00016438,2]
[394501758,1763640640126,-619.52226976,0.00016438,2]
[394501759,1763640640135,-619.52226976,0.00016438,2]
[394501760,1763640640145,-1939.75411625,0.00016438,2]
[394501761,1763640640154,-619.52226976,0.00016438,2]
[394501762,1763640640163,-1939.75411625,0.00016438,2]
[394501763,1763640640173,-619.52226976,0.00016438,2]
[394501764,1763640640182,-619.52226976,0.00016438,2]
[394501765,1763640640192,-1939.75411625,0.00016438,2]
[394501766,1763640640202,-1939.75411625,0.00016438,2]
[394501767,1763640640211,-1939.75411625,0.00016438,2]
[394501768,1763640640221,-619.52226976,0.00016438,2]
[394501769,1763640640230,-1939.75411625,0.00016438,2]
[394501770,1763640640240,-1939.75411625,0.00016438,2]
[394501771,1763640640249,-1939.75411625,0.00016438,2]
[394501773,1763640640259,-1939.75411625,0.00016438,2]
[394501774,1763640640268,-1939.75411625,0.00016438,2]
[394501775,1763640640277,-1939.75411625,0.00016438,2]
[394501776,1763640640286,-1939.75411625,0.00016438,2]
[394501777,1763640640297,-1939.75411625,0.00016438,2]
[394501778,1763640640307,-592.97131535,0.00016438,2]
[394501779,1763640640316,-592.97131535,0.00016438,2]
[394501780,1763640640326,-592.97131535,0.00016438,2]
[394501781,1763640640336,-592.97131535,0.00016438,2]
[394501782,1763640640346,-592.97131535,0.00016438,2]
[394501783,1763640640355,-592.97131535,0.00016438,2]
[394501785,1763640640365,-592.97131535,0.00016438,2]
[394501787,1763640640375,-592.97131535,0.00016438,2]
[394501788,1763640640384,-592.97131535,0.00016438,2]
[394501789,1763640640393,-592.97131535,0.00016438,2]
[394501790,1763640640403,-592.97131535,0.00016438,2]
[394501791,1763640640412,-592.97131535,0.00016438,2]
[394501792,1763640640422,-592.97131535,0.00016438,2]
[394501793,1763640640432,-592.97131535,0.00016438,2]
[394501794,1763640640441,-592.97131535,0.00016438,2]
[394501795,1763640640451,-592.97131535,0.00016438,2]
[394501796,1763640640461,-592.97131535,0.00016438,2]
[394501797,1763640640471,-1891.26026334,0.00016438,2]
[394501798,1763640640481,-1891.26026334,0.00016438,2]
[394501799,1763640640491,-1891.26026334,0.00016438,2]
[394501800,1763640640501,-1891.26026334,0.00016438,2]
[394501801,1763640640511,-1891.26026334,0.00016438,2]
[394501802,1763640640521,-1891.26026334,0.00016438,2]
[394501803,1763640640531,-1891.26026334,0.00016438,2]
[394501804,1763640640541,-1891.26026334,0.00016438,2]
[394501805,1763640640554,-1891.26026334,0.00016438,2]
[394501806,1763640640566,-1891.26026334,0.00016438,2]
[394501807,1763640640576,-1891.26026334,0.00016438,2]
[394501808,1763640640586,-1891.26026334,0.00016438,2]
[394501809,1763640640597,-1891.26026334,0.00016438,2]
[394501810,1763640640607,-1891.26026334,0.00016438,2]
[394501811,1763640640617,-1891.26026334,0.00016438,2]
[394501813,1763640640627,-1891.26026334,0.00016438,2]
[394501814,1763640640637,-1891.26026334,0.00016438,2]
[394501815,1763640640647,-1891.26026334,0.00016438,2]
[394501816,1763640640657,-1891.26026334,0.00016438,2]
[394501817,1763640640668,-1891.26026334,0.00016438,2]
[394501818,1763640640677,-1891.26026334,0.00016438,2]
[394501819,1763640640687,-1891.26026334,0.00016438,2]
[394501820,1763640640697,-1891.26026334,0.00016438,2]
[394501821,1763640640707,-1891.26026334,0.00016438,2]
[394501822,1763640640716,-1891.26026334,0.00016438,2]
[394501823,1763640640726,-1891.26026334,0.00016438,2]
[394501824,1763640640738,-1891.26026334,0.00016438,2]
[394501825,1763640640748,-1891.26026334,0.00016438,2]
[394501826,1763640640758,-1891.26026334,0.00016438,2]
[394501827,1763640640767,-1891.26026334,0.00016438,2]
[394501828,1763640640778,-1891.26026334,0.00016438,2]
[394501829,1763640640788,-1891.26026334,0.00016438,2]
[394501830,1763640640802,-1891.26026331,0.00016438,2]
[394501831,1763640640812,-1891.26026331,0.00016438,2]
[394501832,1763640640821,-1891.26026331,0.00016438,2]
[394501833,1763640640831,-1891.26026331,0.00016438,2]
[394501834,1763640640842,-660.0,0.00016438,2]
[394501835,1763640640851,-200.0,0.00016438,3]
[394501836,1763640640862,-200.0,0.00016438,3]
[394501837,1763640640872,-200.0,0.00016438,3]
[394501838,1763640640882,-200.0,0.00016438,3]
[394501839,1763640640892,-200.0,0.00016438,3]
[394501840,1763640640902,-258.50875083,0.00016438,2]
[394501842,1763640640912,-1182.0672902,0.00016439,2]
[394501843,1763640640921,-150.0,0.00016441,2]
[394501845,1763640640931,-150.0,0.00016441,2]
[394501846,1763640640941,-153.94164709,0.00016473,2]
[394501848,1763640640951,-1109.26321695,0.00016479,2]
[394501850,1763640640962,-220.68714607,0.00016479,2]
[394501852,1763640640972,-731.14843083,0.00016479,2]
[394501854,1763640640981,-501.52660234,0.00016479,2]
[394501856,1763640640991,-1512.31078719,0.00016479,2]
[394501858,1763640641001,-782.73064732,0.00016479,2]
[394501859,1763640641011,-1500.0,0.00016479,2]
[394501861,1763640641021,-1500.0,0.00016479,2]
[394501862,1763640641030,-501.17059423,0.00016479,2]
[394501863,1763640641040,-1500.0,0.00016479,2]
[394501864,1763640641052,-1000.0,0.00016521,2]
[394501865,1763640641062,-1002.60780302,0.00016521,2]
[394501866,1763640641071,-431.08791196,0.00016521,2]
[394501867,1763640641081,-1000.37027476,0.00016521,2]
[394501868,1763640641091,-508.54424109,0.00016521,2]
[394501869,1763640641100,-833.97269117,0.00016521,2]
[394501870,1763640641110,-1000.0,0.00016521,2]
[394501871,1763640641120,-506.95641347,0.00016521,2]
[394501872,1763640641129,-1000.0,0.00016521,2]
[394501873,1763640641139,-1000.0,0.00016521,2]
[394501874,1763640641149,-1000.0,0.00016521,2]
[394501875,1763640641159,-1000.0,0.00016521,2]
[394501876,1763640641168,-1000.0,0.00016609,2]
[394501877,1763640641178,-1000.0,0.00016609,2]
[394501878,1763640641187,-1000.0,0.00016609,2]
[394501879,1763640641197,-358.06882722,0.00016721,2]
[394501880,1763640641206,-2656.03307638,0.00016794,7]
[394501881,1763640641216,-1008.47556298,0.00016977,2]
[394501882,1763640641226,-760.0,0.00016986,2]
[394501883,1763640641235,-45852.54127688,0.00017,2]
[394501884,1763640641245,-2000.0,0.00017027,2]
[394501885,1763640641255,-990.84677833,0.00017027,2]
[394501886,1763640641266,-2000.0,0.00017027,2]
[394501887,1763640641275,-1500.0,0.00017068,2]
[394501888,1763640641285,-851.67392549,0.00017068,2]
[394501889,1763640641296,-1500.0,0.00017068,2]
[394501890,1763640641306,-946.67632665,0.00017068,2]
[394501891,1763640641316,-923.53274159,0.00017068,2]
[394501892,1763640641325,-522.85519407,0.00017068,2]
[394501893,1763640641335,-1137.02766894,0.00017137,7]
[394501894,1763640641345,-169.403298,0.00017399,3]
[394501895,1763640641355,-984.21,0.00017534,2]
[394501896,1763640641470,-860.0,0.00017534,2]
[394501897,1763640641481,-2500.0,0.00017575,2]
[394501898,1763640641491,-2500.0,0.00017575,2]
[394501899,1763640641500,-2124.16919319,0.000176,2]
[394501900,1763640641509,-1500.0,0.00017616,2]
[394501901,1763640641519,-268.91755595,0.00017616,2]
[394501902,1763640641528,-163.22899904,0.00017973,2]
[394501903,1763640641538,-498.43514369,0.00018,2]
[394501904,1763640641548,-57428.13886047,0.00018,2]
[394501905,1763640641837,-91018.41804822,0.00018,2]
[394501906,1763640641847,-5171.60290765,0.00018,2]
[394501907,1763640641858,-625.36181593,0.00018,2]
[394501908,1763640642756,-500.0,6.918e-05,2]
[394501909,1763640642766,-500.0,6.945e-05,2]
[394501910,1763640642775,-500.0,6.973e-05,2]
[394501911,1763640642784,-500.0,7e-05,2]
[394501912,1763640642793,-500.0,7.028e-05,2]
[394501913,1763640642803,-500.0,7.055e-05,2]
[394501914,1763640642813,-500.0,7.082e-05,2]
[394501915,1763640642822,-500.0,7.11e-05,2]
[394501916,1763640642832,-500.0,7.137e-05,2]
[394501917,1763640642841,-500.0,7.165e-05,2]
[394501918,1763640642851,-500.0,7.192e-05,2]
[394501919,1763640642860,-500.0,7.219e-05,2]
[394501920,1763640642870,-500.0,7.247e-05,2]
[394501921,1763640642880,-500.0,7.274e-05,2]
[394501922,1763640642891,-500.0,7.302e-05,2]
[394501923,1763640642901,-500.0,7.329e-05,2]
[394501924,1763640642911,-500.0,7.356e-05,2]
[394501925,1763640642921,-315.50001612,7.384e-05,2]
[394501926,1763640642931,-500.0,0.00010959,2]
[394501927,1763640642940,-500.0,0.00010959,2]
[394501928,1763640642950,-500.0,0.00010959,2]
[394501929,1763640642959,-626.10918708,0.00010959,2]
[394501930,1763640642968,-500.0,0.00010959,2]
[394501931,1763640642977,-500.0,0.00010959,2]
[394501932,1763640642987,-500.0,0.00010959,2]
[394501933,1763640642996,-500.0,0.00010959,2]
[394501935,1763640643006,-50000.0,0.00015342,2]
[394501936,1763640643015,-3891.59579354,0.00018,2]
[394501937,1763640643024,-6132.65684453,0.00018,2]
[394501938,1763640643035,-13960.81743819,0.00018,2]
[394501952,1763640645103,-151.0,6.918e-05,2]
[394501953,1763640645113,-500.0,6.918e-05,2]
[394501954,1763640645123,-151.0,6.918e-05,2]
[394501955,1763640645133,-151.0,6.945e-05,2]
[394501956,1763640645142,-525.0,6.945e-05,2]
[394501957,1763640645152,-151.0,6.945e-05,2]
[394501958,1763640645161,-198.0,6.973e-05,2]
[394501959,1763640645170,-2911.73067976,0.00018,2]
[394501960,1763640645943,-151.0,6.918e-05,2]
[394501961,1763640645952,-198.0,6.973e-05,2]
[394501962,1763640645959,-1339.15574756,0.00018,2]
[394501969,1763640647379,-247.61873019,6.918e-05,2]
[394501970,1763640647388,-3093.3029382,0.00018,2]
[394501984,1763640723711,9279.00732324,6.62e-05,2]
[394501985,1763640723735,10000.01,6.62e-05,2]
[394501986,1763640723760,10000.01,6.62e-05,2]
[394501987,1763640723784,10000.01,6.62e-05,2]
[394501988,1763640748310,-204.68061034,6.554e-05,2]